Cogmind - Beta 11.1 @@@ ROGUE MODE // 2022.07.06 @ 21:29:19 Player: tkc Result: Destroyed by H-55 Commando with Gauss Rifle Performance ------------- Evolutions (3) 1500 Regions Visited (7) 1400 Robots Destroyed (109) 545 Value Destroyed (2951) 2951 Prototype IDs (6) 120 Alien Tech Used (0) 0 Bonus (629) 629 TOTAL SCORE: 7145 Bonus ------- High Alert Combat Kills 312 Follower Combat Kills 117 Entered Garrisons 200 Cogmind --------- Core Integrity 0/700 Matter 324/450 Energy 80/100 System Corruption 12% Temperature Cool (0) Movement Flying (115) Ox1 Location -7/Factory Parts ------- > --- POWER (1) -------- (None) > --- PROPULSION (4) --- VTOL Module > --- UTILITY (5) ------ Large Matter Pod > --- WEAPON (3) ------- Mini Assault Cannon > --- INVENTORY (5) ---- Carbon-fiber Leg Bomb Drone Bay (0/16) Peak State ------------ > --- POWER ------------ Light Ion Engine > --- PROPULSION ------- Medium Treads Aluminum Leg Armored Huge Wheel > --- UTILITY ---------- Improved Heat Sink Large Storage Unit Advanced Weight Redist. System Advanced Targeting Computer Corruption Screen > --- WEAPON ----------- Cooled Particle Cannon Mini Assault Cannon Mini Assault Cannon > --- INVENTORY -------- Light Ion Engine Light Treads Improved Treads Improved Treads Aluminum Leg Aluminum Leg Carbon-fiber Leg Carbon-fiber Leg High-capacity Matter Pod Bomb Drone Bay Shock Rifle Improved Medium Laser Assault Cannon Gauss Cannon [Rating: 47] Favorites ----------- Power Light Ion Engine Engine Light Ion Engine Power Core Light Nuclear Core Propulsion Armored Wheel Treads Improved Treads Leg Carbon-fiber Leg Wheel Armored Wheel Flight Unit Flight Unit Utility Large Storage Unit Device Improved Heat Sink Storage Large Storage Unit Processor Advanced Targeting Computer Protection Light Armor Plating Weapon Mini Assault Cannon Energy Gun EM Pulse Gun Energy Cannon Light EM Pulse Cannon Ballistic Gun Light Assault Rifle Ballistic Cannon Mini Assault Cannon Launcher Mini Grenade Launcher Build | -11 -10 -10 -9 -9 -8 -8 -7 ------- Run | Scr Mat Min Mat Sto Mat Gar Fac Slots Evolved 6 | . . . 2 . 2 . 2 Power . | . . . . . . . . Propulsion 2 | . . . . . 1 . 1 Utility 3 | . . . 1 . 1 . 1 Weapon 1 | . . . 1 . . . . Parts Attached 126 | 6 9 2 14 28 17 28 22 Power 11 | 1 1 1 1 2 1 3 1 Engine 9 | 1 1 1 1 2 . 2 1 Core 2 | . . . . . 1 1 . Reactor . | . . . . . . . . Propulsion 40 | 2 4 . 3 2 9 12 8 Treads 17 | 1 1 . 1 . 4 5 5 Leg 7 | . . . . . . 5 2 Wheel 14 | 1 3 . 2 2 5 1 . Hover . | . . . . . . . . Flight 2 | . . . . . . 1 1 Utility 32 | 1 2 . 4 9 5 4 7 Device 11 | . . . . 6 1 1 3 Storage 5 | 1 1 . 1 . . . 2 Processor 5 | . 1 . 1 . . 1 2 Hackware . | . . . . . . . . Protection 11 | . . . 2 3 4 2 . Artifact . | . . . . . . . . Weapon 43 | 2 2 1 6 15 2 9 6 Energy Gun 16 | 2 1 . 1 6 1 3 2 Energy Cannon 7 | . . . 1 4 . 1 1 Ballistic Gun 9 | . . 1 4 1 . 2 1 Ballistic Cannon 9 | . . . . 4 1 2 2 Launcher 2 | . 1 . . . . 1 . Special Weapon . | . . . . . . . . Impact Weapon . | . . . . . . . . Slashing Weapon . | . . . . . . . . Piercing Weapon . | . . . . . . . . Special Melee Weapon . | . . . . . . . . Unidentified Prototypes 5 | . . . 1 3 . . 1 Parts Lost 44 | . 1 . . 5 2 15 21 Power 6 | . . . . 1 1 2 2 Propulsion 13 | . 1 . . . . 3 9 Utility 11 | . . . . 1 . 5 5 Weapon 14 | . . . . 3 1 5 5 Highest Loss Streak 19 | . 1 . . 2 1 6 19 To Critical Strikes . | . . . . . . . . Average Slot Usage (%) 88 | . 91 100 100 93 87 81 78 Engine 8 | . 14 14 11 10 8 5 5 Treads 3 | . 5 . . . 9 5 7 Leg 3 | . . . . . . 8 6 Wheel 13 | . 21 28 21 22 9 5 5 Device 9 | . . . . 12 18 12 10 Storage 10 | . 14 14 12 11 9 9 7 Processor 6 | . 6 14 13 1 . 5 12 Protection 3 | . . . 7 5 8 2 . Energy Gun 7 | . 27 27 11 4 5 2 2 Energy Cannon 2 | . . . . 11 . . . Ballistic Gun 4 | . . . 21 3 . 4 1 Ballistic Cannon 10 | . . . . 11 19 14 15 Launcher 1 | . . . . . . 2 . Naked Turns . | . . . . . . . . Heaviest Build 51 | 12 27 27 47 46 51 49 38 Greatest Support 86 | 16 24 24 24 24 44 43 86 Greatest Overweight (x) 16 | 3 4 1 1 1 2 16 10 Average Overweight (x) . | . . 1 1 1 1 1 . Largest Inventory Capacity 15 | 8 15 15 15 15 15 15 15 Average Capacity 14 | 7 10 15 15 15 15 15 13 Most Carried 15 | 8 14 15 15 15 15 15 15 Average Carried 14 | 6 9 14 14 14 14 14 13 Final Capacity 15 | 8 15 15 15 15 15 15 5 Final Carried 15 | 8 14 15 15 15 14 15 3 Class Distribution -------------------- 29% | Mutant 22% | Tank 22% | Gunner 13% | Scavenger-Gunner 7% | Scavenger-Tank 3% | Scavenger-Mutant Dominant Class ---------------- Mutant | -10/Materials Mutant | -10/Mines Scavenger-Tank | -9/Materials Tank | -9/Storage Tank | -8/Materials Scavenger-Gunner | -8/Garrison Gunner | -7/Factory Resources | -11 -10 -10 -9 -9 -8 -8 -7 ----------- Run | Scr Mat Min Mat Sto Mat Gar Fac Matter Collected 2714 | 260 105 120 200 473 297 827 432 Remotely . | . . . . . . . . Salvage Created 3484 | 69 236 40 702 1049 276 825 287 Parts 218 | 4 16 6 51 65 7 55 14 Haulers Intercepted 7 | . . . 2 3 1 . 1 Recyclers Shooed 2 | . . . . 1 1 . . Parts Field Recycled . | . . . . . . . . Retrieved Matter . | . . . . . . . . Parts Self-Destructed . | . . . . . . . . Prevented . | . . . . . . . . Kills | -11 -10 -10 -9 -9 -8 -8 -7 ------- Run | Scr Mat Min Mat Sto Mat Gar Fac Combat Hostiles Destroyed 86 | . 7 2 14 19 3 34 7 Guns 21 | . 3 2 10 1 1 3 1 Cannons 39 | . . . . 15 2 16 6 AOE 23 | . 4 . 4 1 . 14 . Classes Destroyed 13 | 2 4 . 2 3 . 2 . Worker 1 | . . . . 1 . . . Builder 1 | . . . . 1 . . . Tunneler 2 | 1 . . 1 . . . . Hauler 7 | . . . 2 3 1 . 1 Recycler 4 | 1 . . 1 . 1 . 1 Operator 1 | . 1 . . . . . . Watcher 7 | . 1 . 3 1 1 . 1 Swarmer 32 | . 3 2 7 . . 17 3 Grunt 35 | . 4 . 4 12 3 12 . Brawler 1 | . . . . . . 1 . Duelist 2 | . . . . 2 . . . Sentry 15 | . . . 3 5 . 3 4 Hunter 1 | . . . . . . 1 . Best Kill Streak 7 | 1 6 2 5 7 4 6 4 Combat Bots Only 6 | . 5 2 4 4 3 6 3 Max Kills in Single Turn 4 | 1 3 1 2 1 1 4 1 Gunslinging . | . . . . . . . . Exploded 3 | . 2 . 2 1 . 3 . Melee . | . . . . . . . . Uniques/NPCs Destroyed . | . . . . . . . . Combat | -11 -10 -10 -9 -9 -8 -8 -7 -------- Run | Scr Mat Min Mat Sto Mat Gar Fac Damage Taken 7236 | . 400 26 382 1209 266 1826 3127 Core 1288 | . 33 26 109 106 17 294 703 Absorbed by Shields . | . . . . . . . . Redirected to Shielding 104 | . . . . . . 104 . Core Remaining (%) 66 | 100 . 76 . 46 . 43 . Volleys Fired 193 | 5 19 3 30 42 15 47 32 Largest 3 | 2 2 2 3 3 3 3 3 Hottest 171 | 90 90 90 90 171 141 152 161 Shots Fired 476 | 10 34 6 90 111 37 104 84 Gun 217 | 10 32 6 90 15 7 39 18 Cannon 248 | . . . . 96 30 56 66 Launcher 11 | . 2 . . . . 9 . Special . | . . . . . . . . Kinetic 273 | . . . 60 42 30 59 82 Thermal 71 | 5 13 3 14 35 . . 1 Explosive 11 | . 2 . . . . 9 . Electromagnetic 121 | 5 19 3 16 34 7 36 1 Robot Hit Streak 15 | 2 5 8 15 7 6 11 12 Robot Miss Streak 5 | 1 5 . 3 4 4 3 3 Penetration Max . | . . . . . . . . Secondary Targets 4 | . 1 1 1 . . 1 . Max Gunslinging Chain 1 | . 1 1 1 . . 1 . Shots Hit Robots 274 | 6 17 6 52 56 20 62 55 Core Hits 152 | 3 11 3 37 27 11 44 16 Critical Kills 1 | . . . . 1 . . . Critical Parts Destroyed 1 | . . . 1 . . . . Critical Strikes 13 | 1 1 . 1 2 1 3 4 Burn 3 | 1 1 . . 1 . . . Meltdown 1 | . . . . 1 . . . Destroy 1 | . . . 1 . . . . Blast 8 | . . . . . 1 3 4 Melee Attacks . | . . . . . . . . Impact . | . . . . . . . . Slashing . | . . . . . . . . Piercing . | . . . . . . . . Sneak Attacks . | . . . . . . . . Combat Hostiles . | . . . . . . . . Follow-up Attacks . | . . . . . . . . Damage Inflicted 6605 | 75 378 76 639 1234 506 2352 1345 Guns 1864 | 75 215 76 515 146 106 472 259 Cannons 3507 | . . . . 1088 400 933 1086 Explosions 1234 | . 163 . 124 . . 947 . Melee . | . . . . . . . . Ramming . | . . . . . . . . Kinetic 3167 | . . . 257 290 400 908 1312 Thermal 867 | 38 76 39 250 406 . 41 17 Explosive 1069 | . 163 . . . . 906 . Electromagnetic 1502 | 37 139 37 132 538 106 497 16 Impact . | . . . . . . . . Slashing . | . . . . . . . . Piercing . | . . . . . . . . Highest Corruption 12 | . . . . 4 . . 12 Average Corruption 4 | . . . . 3 . . 9 Corruption Purged . | . . . . . . . . Corruption Blocked . | . . . . . . . . Effects 26 | . . . . 23 . . 3 Message Errors 4 | . . . . 4 . . . Matter Fused 8 | . . . . 7 . . 1 Heat Flow Errors 3 | . . . . 2 . . 1 Parts Rejected 1 | . . . . 1 . . . Data Loss (minor) 3 | . . . . 3 . . . Data Loss (major) 2 | . . . . 2 . . . Alerts 4 | . . . . 3 . . 1 Weapon Failures 1 | . . . . 1 . . . Overload Shots . | . . . . . . . . Overflow Damage 159 | . 11 . . 27 2 107 12 Projectiles 58 | . . . . 27 2 17 12 Explosions 101 | . 11 . . . . 90 . Melee . | . . . . . . . . Knockbacks 10 | . . . . 1 2 4 3 Impact . | . . . . . . . . Kinetic 9 | . . . . 1 2 3 3 Secondary 1 | . . . . . . 1 . Self-Inflicted Damage 232 | . . . 67 . . 165 . Shots 6 | . . . 2 . . 4 . Rammed . | . . . . . . . . Targets Rammed . | . . . . . . . . Kicked . | . . . . . . . . Crushed . | . . . . . . . . Highest Temperature 393 | 90 354 60 211 393 54 57 242 Average Temperature 78 | 46 134 28 70 101 19 19 46 Received Heat Transfer 2385 | . 150 . 105 429 153 666 882 Effects 2 | . 1 . . 1 . . . Shutdowns 1 | . . . . 1 . . . Energy Bleed 1 | . 1 . . . . . . Siege Activations . | . . . . . . . . Robots Corrupted 2 | . . . . 1 . 1 . Combat Hostiles 2 | . . . . 1 . 1 . Parts Fried 1 | . . . . 1 . . . Impact Corruptions . | . . . . . . . . Robots Melted 1 | . . . . 1 . . . Combat Hostiles 1 | . . . . 1 . . . Parts Melted 4 | . 2 . 1 1 . . . Heat Transferred 1959 | 185 296 111 520 760 . 50 37 Parts Sabotaged . | . . . . . . . . Parts Stolen . | . . . . . . . . Parts Stripped . | . . . . . . . . Power Chain Reactions 3 | . . . 2 . . 1 . Missiles Intercepted . | . . . . . . . . Alert | -11 -10 -10 -9 -9 -8 -8 -7 ------- Run | Scr Mat Min Mat Sto Mat Gar Fac Peak Influence 1029 | 10 259 249 524 510 282 1029 700 Initial 539 | . 6 100 96 165 174 56 539 Average 406 | 3 195 132 250 326 204 639 573 Maximum Alert Level 3 | . 1 1 2 2 1 3 3 Low Security (%) 26 | 100 35 92 40 4 56 15 . Level 1 30 | . 64 7 53 71 43 5 . Level 2 25 | . . . 6 24 . 32 89 Level 3 16 | . . . . . . 46 10 Level 4 . | . . . . . . . . Level 5 . | . . . . . . . . High Security . | . . . . . . . . Max Security . | . . . . . . . . Squads Dispatched 10 | . 1 . 1 5 . . 3 Investigation 3 | . . . 1 2 . . . Extermination . | . . . . . . . . Reinforcement 2 | . 1 . . 1 . . . Assault 2 | . . . . 2 . . . Garrison 3 | . . . . . . . 3 Intercept . | . . . . . . . . Searches Triggered . | . . . . . . . . Construction Impeded . | . . . . . . . . Haulers Reinforced . | . . . . . . . . Active Scanning Responses . | . . . . . . . . Cargo Convoy Interrupts . | . . . . . . . . Stealth | -11 -10 -10 -9 -9 -8 -8 -7 --------- Run | Scr Mat Min Mat Sto Mat Gar Fac Distress Signals 5 | . 1 . 3 1 . . . Communications Jammed . | . . . . . . . . Distress Signals . | . . . . . . . . Times Spotted 132 | . 10 5 21 35 7 39 15 Peak Tracking Total 10 | . 5 2 6 10 3 6 6 Tactical Retreats 7 | . . . . 2 . 3 2 Traps | -11 -10 -10 -9 -9 -8 -8 -7 ------- Run | Scr Mat Min Mat Sto Mat Gar Fac Traps Triggered 10 | . . . 1 5 . 4 . Indirectly . | . . . . . . . . Trap Hack Attempts . | . . . . . . . . Triggered . | . . . . . . . . Disarmed . | . . . . . . . . Reprogrammed . | . . . . . . . . Reused . | . . . . . . . . Traps Extracted . | . . . . . . . . Installed . | . . . . . . . . Triggered . | . . . . . . . . Machines | -11 -10 -10 -9 -9 -8 -8 -7 ---------- Run | Scr Mat Min Mat Sto Mat Gar Fac Machines Disabled 5 | . . 1 . 2 1 . 1 Max in Single Turn 1 | . . . . 1 1 . 1 Machines Sabotaged . | . . . . . . . . Garrisons Compromised . | . . . . . . . . Overloaded Fab Kills . | . . . . . . . . Hacking | -11 -10 -10 -9 -9 -8 -8 -7 --------- Run | Scr Mat Min Mat Sto Mat Gar Fac Machines Accessed 20 | . . 1 6 8 2 . 3 Terminals 14 | . . . 4 8 1 . 1 Fabricators . | . . . . . . . . Repair Stations 2 | . . . 1 . . . 1 Recycling Units . | . . . . . . . . Scanalyzers 1 | . . . 1 . . . . Garrison Access 2 | . . . . . 1 . 1 Total Hacks 47 | . . 1 20 17 4 . 5 Successful 28 | . . 1 13 11 2 . 1 Failed 19 | . . . 7 6 2 . 4 Catastrophic 3 | . . . 1 . 1 . 1 Database Lockouts . | . . . . . . . . Manual 28 | . . . 16 9 3 . . Terminals 38 | . . . 16 17 3 . 2 Fabricators . | . . . . . . . . Repair Stations 3 | . . . 2 . . . 1 Recycling Units . | . . . . . . . . Scanalyzers 2 | . . . 2 . . . . Garrison Access 3 | . . . . . 1 . 2 Terminal Hacks 17 | . . 1 7 8 . . 1 Robot Analysis 2 | . . . 2 . . . . Open Door 4 | . . 1 . 3 . . . Open DSF 1 | . . . . . . . 1 Level Access Points 1 | . . . 1 . . . . Branch Access Points 1 | . . . 1 . . . . Terminal Index 2 | . . . 1 1 . . . Alert Level 3 | . . . 1 2 . . . Unreport Threat 1 | . . . . 1 . . . Zone Layout 2 | . . . 1 1 . . . Fabricator Hacks . | . . . . . . . . Repair Station Hacks 1 | . . . 1 . . . . Scan Component 1 | . . . 1 . . . . Recycling Unit Hacks . | . . . . . . . . Scanalyzer 2 | . . . 2 . . . . Insert Component 2 | . . . 2 . . . . Garrison Access Hacks 1 | . . . . . 1 . . Unlock Access 1 | . . . . . 1 . . Unauthorized Hacks 7 | . . . 3 3 1 . . Terminals 7 | . . . 3 3 1 . . Assimilate 2 | . . . . 2 . . . Botnet 4 | . . . 2 1 1 . . Disrupt 1 | . . . 1 . . . . Fabricators . | . . . . . . . . Repair Stations . | . . . . . . . . Recycling Units . | . . . . . . . . Scanalyzers . | . . . . . . . . Garrison Access . | . . . . . . . . Data Cores Recovered . | . . . . . . . . Used . | . . . . . . . . Hacking Detections 15 | . . . 5 7 . . 3 Full Trace Events 2 | . . . . 2 . . . Feedback Events . | . . . . . . . . Feedback Blocked . | . . . . . . . . Robot Schematics Acquired . | . . . . . . . . Robots Built . | . . . . . . . . Authchips . | . . . . . . . . Time . | . . . . . . . . Total Robot Build Rating . | . . . . . . . . Part Schematics Acquired . | . . . . . . . . Parts Built . | . . . . . . . . Authchips . | . . . . . . . . Time . | . . . . . . . . Total Part Build Rating . | . . . . . . . . Parts Repaired . | . . . . . . . . Time . | . . . . . . . . Parts Recycled . | . . . . . . . . Recycled Matter . | . . . . . . . . Retrieved Matter . | . . . . . . . . Retrieved Components . | . . . . . . . . Parts Scanalyzed . | . . . . . . . . Part Schematics Acquired . | . . . . . . . . Parts Damaged . | . . . . . . . . Bothacking | -11 -10 -10 -9 -9 -8 -8 -7 ------------ Run | Scr Mat Min Mat Sto Mat Gar Fac Used RIF Installer . | . . . . . . . . Robots Hacked . | . . . . . . . . Non-combat . | . . . . . . . . Combat . | . . . . . . . . Robot Hacks Applied . | . . . . . . . . Relay Couplers Released . | . . . . . . . . Fabnet Peak Effective % . | . . . . . . . . Robots Rewired . | . . . . . . . . Allies Hacked . | . . . . . . . . Hacks Repelled . | . . . . . . . . Allies | -11 -10 -10 -9 -9 -8 -8 -7 -------- Run | Scr Mat Min Mat Sto Mat Gar Fac Total Allies 4 | . . 2 . 2 . . . Largest Group 2 | . . 2 1 2 . . . Highest-Rated Group 62 | . . 42 11 62 . . . Highest-Rated Ally 31 | . . 31 11 31 . . . Total Orders . | . . . . . . . . Ally Attacks 41 | . . 6 . 35 . . . Total Damage 378 | . . 83 . 295 . . . Kills 5 | . . 3 . 2 . . . Allies Corrupted . | . . . . . . . . Allies Melted . | . . . . . . . . Intel | -11 -10 -10 -9 -9 -8 -8 -7 ------- Run | Scr Mat Min Mat Sto Mat Gar Fac Robot Analysis Total 2 | . . . 2 . . . . Derelict Logs Recovered . | . . . . . . . . Drone Launches 22 | . . . . 19 . 3 . Drone Recoveries 5 | . . . . 1 1 3 . Exploration | -11 -10 -10 -9 -9 -8 -8 -7 ------------- Run | Scr Mat Min Mat Sto Mat Gar Fac Turns Passed 4746 | 83 312 361 527 950 447 1538 528 Spaces Moved 2967 | 46 225 309 345 589 290 839 324 Core 40 | 25 3 . . . . 2 10 Treads 68 | . 3 . . . 24 20 21 Legs 320 | . . . . . . 314 6 Wheels 2539 | 21 219 309 345 589 266 503 287 Hover . | . . . . . . . . Flight . | . . . . . . . . Fastest Speed 50 | 50 90 105 105 105 105 100 100 Average Speed 120 | 110 101 105 105 105 124 146 120 Slowest Speed 850 | 200 250 105 105 105 320 850 550 Overloaded Moves . | . . . . . . . . Propulsion Burnouts . | . . . . . . . . Robots Hopped . | . . . . . . . . Cave-ins Triggered . | . . . . . . . . Exploration Rate (%) 40 | 3 28 47 39 91 28 80 6 Regions Visited 7 Branch Regions 2 Pre-discovered Areas . | . . . . . . . . Known Exits Taken 3 | . . . 1 1 1 . . Unknown Exits Taken 3 | 1 1 1 . . . . . Scrap Searched 1 | . . 1 . . . . . Spaces Dug . | . . . . . . . . Terrain Destroyed 105 | . 12 . 10 13 13 48 9 Melee . | . . . . . . . . Projectile 27 | . . . . 4 13 1 9 AOE 78 | . 12 . 10 9 . 47 . Terrain Rammed . | . . . . . . . . Walls Destroyed . | . . . . . . . . Machines Disabled . | . . . . . . . . Actions | -11 -10 -10 -9 -9 -8 -8 -7 --------- Run | Scr Mat Min Mat Sto Mat Gar Fac Total 3762 | 65 277 341 457 830 346 1053 393 Wait 306 | . . 22 47 129 . 103 5 Move 2961 | 45 224 308 344 588 290 838 324 Hop . | . . . . . . . . Pick Up 64 | 9 14 2 8 10 7 11 3 Fast Attach 48 | 5 2 1 3 7 8 13 9 Attach 39 | 1 1 . 2 9 6 9 11 Detach 10 | . . . . 5 3 1 1 Swap 39 | . 6 1 9 12 3 6 2 Drop 70 | . 11 4 14 12 14 9 6 Fire 193 | 5 19 3 30 42 15 47 32 Melee . | . . . . . . . . Ram . | . . . . . . . . Kick . | . . . . . . . . Crush . | . . . . . . . . Escape Stasis 32 | . . . . 16 . 16 . Rewire . | . . . . . . . . Trap . | . . . . . . . . Miscellaneous . | . . . . . . . . Route ------- -11/Scrapyard -10/Materials -10/Mines -9/Materials (discovered 6 exits: Mat x3 / *Min / *Sto x2) -9/Storage -8/Materials -8/Garrison (discovered 3 exits: *Fac x3) -7/Factory History --------- Turn | Location | Event 7 | -11/Scrapyard | Discovered new exit (range 16) 84 | -11/Scrapyard | Entered Materials 240 | -10/Materials | Discovered new exit (range 12) 311 | -10/Materials | Build established: Mutant 396 | -10/Materials | Entered Mines 553 | -10/Mines | Found the Drone Emporium 561 | -10/Mines | Found Prototype Device 734 | -10/Mines | Discovered new exit (range 6) 757 | -10/Mines | Entered Materials 757 | -9/Materials | Accompanied by 1 ally 757 | -9/Materials | Evolved 2 slots: Utility x1, Weapon x1 776 | -9/Materials | Discovered new exit (range 5) 936 | -9/Materials | Discovered new exit (range 18) 1002 | -9/Materials | Identified Bomb Drone Bay 1213 | -9/Materials | Identified exit to Materials 1215 | -9/Materials | Discovered new exit (range 16) 1220 | -9/Materials | Identified exit to Mines 1220 | -9/Materials | Identified exit to Storage 1284 | -9/Materials | Entered Storage 1298 | -9/Storage | Met a pair of Derelict thieves 1768 | -9/Storage | Core integrity fell below 50% 2215 | -9/Storage | Discovered exit to Materials (range 17) 2234 | -9/Storage | Entered Materials 2234 | -8/Materials | Accompanied by 2 allies 2234 | -8/Materials | Evolved 2 slots: Propulsion x1, Utility x1 2681 | -8/Materials | Identified exit to Garrison 2681 | -8/Materials | Entered Garrison 2681 | -8/Garrison | Accompanied by 1 ally 2716 | -8/Garrison | Triggered checkpoint 2762 | -8/Garrison | Triggered checkpoint 2868 | -8/Garrison | Build established: Tank 2970 | -8/Garrison | Triggered checkpoint 3082 | -8/Garrison | Lost 6 parts (1p1n2u2w) 3150 | -8/Garrison | Discovered new exit (range 8) 3170 | -8/Garrison | Triggered checkpoint 3314 | -8/Garrison | Triggered checkpoint 3394 | -8/Garrison | Triggered checkpoint 3441 | -8/Garrison | Lost 4 parts (1n1u2w) 3544 | -8/Garrison | Triggered checkpoint 3552 | -8/Garrison | Core integrity fell below 50% 3647 | -8/Garrison | Discovered new exit (range 8) 3786 | -8/Garrison | Triggered checkpoint 3854 | -8/Garrison | Discovered new exit (range 14) 3873 | -8/Garrison | Build established: Scavenger-Gunner 4219 | -8/Garrison | Entered Factory 4219 | -7/Factory | Evolved 2 slots: Propulsion x1, Utility x1 4353 | -7/Factory | Build established: Gunner 4673 | -7/Factory | Core integrity fell below 50% 4688 | -7/Factory | System corruption reached 10% 4732 | -7/Factory | Core integrity fell below 20% 4747 | -7/Factory | Destroyed by H-55 Commando with Gauss Rifle Last Messages --------------- 04720_ Penetrated by Slug. 04720_ Imp. Treads destroyed. 04721_ System corrupted: Heat flow error (+265). 04722_ Penetrated by Slug. 04725_ Lgt. Treads destroyed. 04726_ Acquired 103 matter. 04727_ M-13 Machinist fits Backup Laser I on G-47 Trooper. 04728_ Slug penetrates Wall. 04728_ U-05 Engineer destroyed. 04728_ Imp. Treads destroyed. 04731_ Penetrated by Slug. 04736_ B-48 Gladiator suffers critical hit (Burn). 04736_ Penetrated by Slug. 04736_ B-48 Gladiator destroyed. 04737_ Acquired 62 matter. 04737_ K-01 Serf collects debris. 04738_ Penetrated by Slug. 04747_ Slug penetrates Wall. 04747_ Mni. Assault Cannon destroyed. 04747_ Slug penetrates Wall. Map ----- +----------------------------------------------------+ | ?????????????????????????????????????????????????? | | ?????????????????????????????????????????????????? | | ?????????????????????????????????????????????????? | | ?????????????????????????????????????????????????? | | ???????????????????????????????????????????????### | | ???????????????????????????????????????????????# | | ???????????????????????????????????????????????# " | | ???????????????????????????????????????????????# " | | ???????????????????????????????????????????????# " | | ???????????????????????????????????????????????# | | ???????????????????????????????????????????????### | | ?????????????????????????????????????????????????? | | ?????????????????????????????????????????????????? | | ?????????????????????????????????????????????????? | | ?????????????????????????????????????????????????? | | ?????????????????????????????????????????????????? | | ?????????????????????????????????????????????????? | | ?????????????????????#########?#?????????????????? | | ?????????????????????# #?????????????????? | | ?????????????????????# """ """ #????############## | | ???????????????#?????# """ """ #????# | | ???????????????# ????# """ """ #????# | | ???????????????# ???# #????# | | ???????????????#% ??# #????# | | ???????????????#! ?# #????# | | ???????????????# # @ #?#### #####+## | | ???????????????# #####g#######T # # | | ???????????????# ! # | | ????????????" # / g # | | ??????????? + # """ | | ???????????????# m # """"" | | ???????????????# # """"" | | ???????????????# #####/################ | | ???????????????# # #???????????# | | ???????????????# ?# """ [[!#???????????######## | | ???????????????# ??# """ [!!#??????????????????? | | ???????????????# ???# """ [! #??????????????????? | | ???????????????# ????# #??????????????????? | | ???????????????#?????#["" "" #??????????????????? | | ?????????????????????#%""S" #??????????????????? | | ?????????????????????#]"""" #??????????????????? | | ?????????????????????# = |!=#??????????????????? | | ?????????????????????### ######??????????????????? | | ?????????????????????#######?????????????????????? | | ?????????????????????????????????????????????????? | | ?????????????????????????????????????????????????? | | ?????????????????????????????????????????????????? | | ?????????????????????????????????????????????????? | | ?????????????????????????????????????????????????? | | ?????????????????????????????????????????????????? | +----------------------------------------------------+ Best States ------------- Heat Dissipation 67 Energy Generation 14 Energy Capacity 265 Matter Stores 329 Matter Capacity 500 Sight Range 18 Terrain Scan Range 14 Terrain Scan Density 10 Additional Mass Support 9 Armor Coverage 225 Propulsion Shielding 66 Evasion (%) 50 Targeting Accuracy 8 Recoil Reduction 4 Item Schematics ----------------- None Robot Schematics ------------------ None Fabricated ------------ Nothing Alien Tech Used ----------------- None Achievements -------------- Release The Drones! Challenges ------------ None Game ------ Seed AlphaLinearDisintegrator Manual? 0 Play Time 02:02:24 Cumulative 26.6 hours Start 2022.07.05 @ 22:01:07 End 2022.07.06 @ 21:29:19 Sessions 3 Manual Loads 0 Difficulty Rogue Special Mode None Game No. 19 Rogue 18 Adventurer 0 Explorer 1 Win Type - Total 0 Types 0/0/0/0/0/0/0/0/0 Lore% 16 Gallery% 19 Achievement% 15 Wizard Run 0 Options --------- ASCII 0 Keyboard 0 Movement Mouse Keybinds 0 Fullscreen 1 Font 36/Terminus Map View 76x50 Tactical HUD 1 Map Filters NONE Filters NONE Steam 1 RUN: 70557459-9842-414f-97df-988985afea88